Workbook

Sheet DANE (hidden)
B1: PriceLIST | C1: PL_2020
B2: Currency: | C2: PLN
B3: Valid till: | C3: 31.12.2021
B4: Delivery terms: | C4: DAP | D4: Art.-No | H4: PG | N4: Art.-No | R4: PG | X4: Art.-No | AB4: PG | AH4: Art.-No | AL4: PG
A5: Group | B5: DESCRIPTION ARTICLE No | C5: DIMENSION* | D5: LC | E5: VOL. | F5: WEIGHT | G5: FABRIC USAGE | H5: A | I5: I | J5: II | K5: III | L5: IV | M5: E | N5: LC COVER | O5: VOL. | P5: WEIGHT | Q5: FABRIC USAGE | R5: A | S5: I | T5: II | U5: III | V5: IV | W5: E | X5: LCV | Y5: VOL. | Z5: WEIGHT | AA5: FABRIC USAGE | AB5: A | AC5: I | AD5: II | AE5: III | AF5: IV | AG5: E | AH5: LCV COVER | AI5: VOL. | AJ5: WEIGHT | AK5: FABRIC USAGE | AL5: A | AM5: I | AN5: II | AO5: III | AP5: IV | AQ5: E
A6: lill_4seater | B6: 4 seater /two parts/ | C6: 270x107x84/42 | D6: E1536-0900-6S | E6: 1.89 | F6: 108 | G6: 13.9 | H6: 3,300 | I6: 3,485 | J6: 3,805 | K6: 4,130 | L6: 4,405 | M6: 5,095 | N6: E0536-0900-6 | O6: 0.04 | P6: 9 | Q6: 13.9 | R6: 2,155 | S6: 2,085 | T6: 2,070 | U6: 2,020 | V6: 1,915 | W6: 2,395 | X6: E1536-0900-4S | Y6: 1.89 | Z6: 108 | AA6: 13.9 | AB6: 3,400 | AC6: 3,590 | AD6: 3,920 | AE6: 4,255 | AF6: 4,540 | AG6: 5,250 | AH6: E0536-0900-4 | AI6: 0.04 | AJ6: 9 | AK6: 13.9 | AL6: 2,155 | AM6: 2,085 | AN6: 2,070 | AO6: 2,020 | AP6: 1,915 | AQ6: 2,395
A7: lill_3seater | B7: 3 seater /two parts/ | C7: 230x107x84/42 | D7: E1536-0500-6S | E7: 1.62 | F7: 92 | G7: 11.9 | H7: 2,860 | I7: 3,025 | J7: 3,320 | K7: 3,610 | L7: 3,860 | M7: =[1]LC_LUX!M7-[1]LC_LUX!M7*0.08 -> 5,092 | N7: E0536-0500-6 | O7: 0.04 | P7: 7 | Q7: 11.9 | R7: 1,865 | S7: 1,810 | T7: 1,805 | U7: 1,765 | V7: 1,680 | W7: 2,100 | X7: E1536-0500-4S | Y7: 1.62 | Z7: 92 | AA7: 11.9 | AB7: 2,950 | AC7: 3,120 | AD7: 3,420 | AE7: 3,720 | AF7: 3,980 | AG7: 4,615 | AH7: E0536-0500-4 | AI7: 0.04 | AJ7: 7 | AK7: 11.9 | AL7: 1,865 | AM7: 1,810 | AN7: 1,805 | AO7: 1,765 | AP7: 1,680 | AQ7: 2,100
A8: lill_2seater | B8: 2 seater | C8: 200x107x84/42 | D8: E1536-0200-6S | E8: 1.40 | F8: 66 | G8: 10.9 | H8: 2,380 | I8: 2,505 | J8: 2,710 | K8: 2,925 | L8: 3,135 | M8: =[1]LC_LUX!M8-[1]LC_LUX!M8*0.08 -> 4,480 | N8: E0536-0200-6 | O8: 0.03 | P8: 7 | Q8: 10.9 | R8: 1,555 | S8: 1,500 | T8: 1,475 | U8: 1,430 | V8: 1,365 | W8: 1,705 | X8: E1536-0200-4S | Y8: 1.40 | Z8: 66 | AA8: 10.9 | AB8: 2,455 | AC8: 2,585 | AD8: 2,795 | AE8: 3,015 | AF8: 3,230 | AG8: 4,035 | AH8: E0536-0200-4 | AI8: 0.03 | AJ8: 7 | AK8: 10.9 | AL8: 1,555 | AM8: 1,500 | AN8: 1,475 | AO8: 1,430 | AP8: 1,365 | AQ8: 1,705
A9: lill_ftst135 | B9: footstool 135x60 | C9: 135x60x42 | D9: E1536-1070-6S | E9: 0.37 | F9: 20 | G9: 3.0 | H9: 1,020 | I9: 1,065 | J9: 1,150 | K9: 1,230 | L9: 1,295 | M9: 1,620 | N9: E0536-1070-6 | O9: 0.01 | P9: 3 | Q9: 3.0 | R9: 425 | S9: 500 | T9: 595 | U9: 700 | V9: 805 | W9: 1,005 | X9: E1536-1070-4S | Y9: 0.37 | Z9: 20 | AA9: 3.0 | AB9: 1,055 | AC9: 1,100 | AD9: 1,185 | AE9: 1,270 | AF9: 1,335 | AG9: 1,670 | AH9: E0536-1070-4 | AI9: 0.01 | AJ9: 3 | AK9: 3.0 | AL9: 424 | AM9: 497 | AN9: 595 | AO9: 699 | AP9: 801 | AQ9: 1,001
A10: lill_ftst100 | B10: footstool 100x50 | C10: 100x50x42 | D10: E1536-1055-6S | E10: 0.22 | F10: 15 | G10: 2.3 | H10: 840 | I10: 875 | J10: 935 | K10: 995 | L10: 1,050 | M10: 1,310 | N10: E0536-1055-6 | O10: 0.01 | P10: 3 | Q10: 2.3 | R10: 350 | S10: 410 | T10: 485 | U10: 570 | V10: 650 | W10: 813 | X10: E1536-1055-4S | Y10: 0.22 | Z10: 15 | AA10: 2.3 | AB10: 870 | AC10: 905 | AD10: 965 | AE10: 1,025 | AF10: 1,085 | AG10: 1,350 | AH10: E0536-1055-4 | AI10: 0.01 | AJ10: 3 | AK10: 2.3 | AL10: 350 | AM10: 410 | AN10: 485 | AO10: 567 | AP10: 648 | AQ10: 810
A11: lill_pillow_round | B11: pillow round | C11: Ø32 | D11: E1536-3232-4S | E11: 0.03 | F11: 1.5 | G11: 0.6 | H11: 85 | I11: 95 | J11: =[1]LC_LUX!J11-[1]LC_LUX!J11*0.08 -> 892 | K11: 125 | L11: 140 | M11: =[1]LC_LUX!M11-[1]LC_LUX!M11*0.08 -> 1,242 | N11: E0536-3232-4 | O11: 0.01 | P11: 1 | Q11: 0.6 | R11: 55 | S11: 55 | T11: 60 | U11: 65 | V11: 60 | W11: 75 | AB11: 90 | AC11: 100 | AD11: 115 | AE11: 130 | AF11: 145 | AG11: 185 | AL11: 55 | AM11: 55 | AN11: 60 | AO11: 65 | AP11: 60 | AQ11: 75
B12: UWAGI | C12: Załączone ceny rekomendowane mają charakter sugerowanych cen sprzedaży. Kupujący nie jest związany cenami rekomendowanymi.

Sheet DANE Techniczne (hidden)
B1: PL | C1: EN | D1: DE | E1: FR | F1: PL | G1: RU
B2: Cennik zakupu 2020 | C2: Purchase Pricelist 2020 | D2: Einkaufspreisliste 2020 | F2: cennik zakupu | G2: Прайс-лист на покупку 2020
B3: Cennik sprzedaży 2020 | C3: Sales Pricelist 2020 | D3: 9Verkaufspreisliste 2020 | F3: cennik sprzedaży | G3: Прайс-лист на продажу 2020
B4: POSZYCIE: tkanina: LC - poszycie luźne lub luźne z rzepem KOMFORT: standard | C4: UPHOLSTERY: fabric: LC - loose cover or LCV - loose cover with velcro COMFORT: standard | D4: AUSFÜHRUNG: Stoff: LC - lose Husse ode LCV - lose Husse mit Klettband, KOMFORT: Standard | G4: ОБИВКА: ткань: LC - съемный чехол, КОМФОРТ: lux
B5: DANE TECHNICZNE | C5: TECHNICAL SPECIFICATION | D5: TECHNISCHE DATEN | G5: ТЕХНИЧЕСКИЕ ДАННЫЕ
B6: PRZEKRÓJ | C6: PROFILE | D6: QUERSCHNITT | E6: coupe transversale | F6: PRZEKRÓJ | G6: СЕЧЕНИЕ
B7: KOMFORT: standard | C7: COMFORT: standard | D7: KOMFORT: Standard | G7: КОМФОРТ: lux
A8: 1 | B8: pianka poliuretanowa/ wysokoelastyczna poliuretanowa pianka | C8: polyurethane foam/high resilient polyurethane foam | D8: FCKW-freier Polyurethanschaum/ -hochelastischer Polyurethanschaum | E8: mousse de polyuréthane/ mousse HR | F8: pianka poliuretanowa/wysokoelastyczna poliuretanowa pianka | G8: пенополиуретан/высокоэластичный пенополиуретан
A9: 2 | B9: kulka silikinowa | C9: silicone balls | D9: Silikonabdeckung | E9: rembourrage de coussin en plumes et boules de silicon | F9: komora poduszki - mix pierze z kulkami silikonowymi | G9: камера подушки силиконизированное волокно и пух
A10: 3 | B10: sprężyny | C10: springs | D10: Stahlwellenfederung (Nosag) | E10: ressorts | F10: spręzyny | G10: пружины
A11: 4 | B11: FSC® certyfikat lite drewno i elementy drewnopochodne | C11: FSC® certified solid wood and wood based elements | D11: FSC® zertifiziertes Massivholz und andere Materialien auf Holzbasis (z.B. Schichtholz) | E11: bois massif et des éléments à base de bois | F11: lite drewno i elementy drewnopochodne | G11: натуральное дерево и древесные материалы
A12: 5 | B12: tkanina | C12: fabric | D12: Stoff | E12: tissu | F12: tkanina | G12: ткань
A13: 6 | B13: FSC® certyfikat nogi z litego drewna lub noga metalowa ( czarna, szara, chrom stal szczotkowana) | C13: FSC® certified solid wood legs or metal legs (black, grey, chrome, brushed steel) | D13: FSC® zertifiziertes Massivholzfüße oder Metallfüße (schwarz, grau, verchromt oder gebürstet) | E13: pieds en bois massif | F13: nogi z litego drewna | G13: ножки из натурального дерева
B14: Producent zastrzega sobie prawo do zmiany konstrukcji użytych produktów i komponentów ze względu na poprawę trwałości produktu i zadowolenia klienta bez dalszego powiadomienia | C14: The producer reserves the right to change construction of products and compnents used due to improving durability of product and customer satisfaction without any further notice. | D14: Wir behalten uns das Recht vor, neben der Konstruktion auch die verwendeten Komponenten hinsichtlich einer Verbesserung des Modells und der Kundenzufriedenheit ohne vorherige Ankündigung zu ändern
B15: POSZYCIE: | C15: UPHOLSTERY: | D15: AUSFÜHRUNG: | G15: ОБИВКА:
B16: tkanina: LC -poszycie luźne lub luźne z rzepem Komfort: standard or lux | C16: fabri: LC - loose cover or LCV - loose cover with velcro, Comfort: standard or lux | D16: Stoff: LC - lose Husse ode LCV - lose Husse mit Klettband, Komfort: Standard oder Lux | G16: ткань: LC - съемный чехол
B17: NOGI | C17: FEET | D17: FÜßE | G17: НОЖКИ
B18: WYBARWIENIA DREWNIANYCH NÓG | C18: COLOURS OF WOODEN FEET | D18: FARBEN DER HOLZFÜßE | G18: ВЫКРАСКА ДЕРЕВЯННЫХ НОЖЕК
B19: *Tolerancja +/- 2 cm dla wszystkich rozmiarów elementów | C19: *Explicit +/- 2 cm tolerance of all elements sizes | D19: *Bitte beachten Sie eine Produktionstechnische Toleranz von +/- 2 cm für alle Elementgrößen.
B20: If formulas do not refresh automatically please press F9 and Save | C20: If formulas do not refresh automatically please press F9 and Save | D20: sollten die Formel nicht aktualisiert werden, drücken Sie F9 und speichern Sie

Sheet Dane Techniczne PL
A3: ='DANE Techniczne'!B5 -> DANE TECHNICZNE
A5: ='DANE Techniczne'!B6 -> PRZEKRÓJ
A6: ='DANE Techniczne'!B7 -> KOMFORT: standard
B8: 1 | C8: ='DANE Techniczne'!B8 -> pianka poliuretanowa/ wysokoelastyczna poliuretanowa pianka
B9: 2 | C9: ='DANE Techniczne'!B9 -> kulka silikinowa
B10: 3 | C10: ='DANE Techniczne'!B10 -> sprężyny
B11: 4 | C11: ='DANE Techniczne'!B11 -> FSC® certyfikat lite drewno i elementy drewnopochodne
B12: 5 | C12: ='DANE Techniczne'!B12 -> tkanina
B13: 6 | C13: ='DANE Techniczne'!B13 -> FSC® certyfikat nogi z litego drewna lub noga metalowa ( czarna, szara, chrom stal szczotkowana)
A14: ='DANE Techniczne'!B14 -> Producent zastrzega sobie prawo do zmiany konstrukcji użytych produktów i komponentów ze względu na poprawę trwałości produktu i zadowolenia klienta bez dalszego powiadomienia
A16: ='DANE Techniczne'!B15 -> POSZYCIE:
A17: ='DANE Techniczne'!B16 -> tkanina: LC -poszycie luźne lub luźne z rzepem Komfort: standard or lux
A19: ='DANE Techniczne'!B17 -> NOGI
A22: ='DANE Techniczne'!B18 -> WYBARWIENIA DREWNIANYCH NÓG

Sheet Cennik zakupu
A3: ='DANE Techniczne'!B2 -> Cennik zakupu 2020
A4: ='DANE Techniczne'!B4 -> POSZYCIE: tkanina: LC - poszycie luźne lub luźne z rzepem KOMFORT: standard | F4: =DANE!$B$2 -> Currency: | H4: =DANE!$C$2 -> PLN | I4: =DANE!$B$3 -> Valid till: | K4: =DANE!$C$3 -> 31.12.2021
A5: =DANE!$B$5 -> DESCRIPTION ARTICLE No | B5: =DANE!$C$5 -> DIMENSION* | D5: =DANE!$E$5 -> VOL. | E5: =DANE!$F$5 -> WEIGHT | F5: =DANE!$G$5 -> FABRIC USAGE | G5: =DANE!$H$5 -> A | H5: =DANE!$I$5 -> I | I5: =DANE!$J$5 -> II | J5: =DANE!$K$5 -> III | K5: =DANE!$L$5 -> IV | L5: =DANE!$M$5 -> E
A7: =DANE!$C$6 -> 270x107x84/42 | B7: =DANE!$B$6 -> 4 seater /two parts/
B8: =DANE!$D$5 -> LC | C8: =DANE!D$6 -> E1536-0900-6S | D8: =DANE!E$6 -> 1.89 | E8: =DANE!F$6 -> 108 | F8: =DANE!G$6 -> 13.9 | G8: =DANE!H$6 -> 3,300 | H8: =DANE!I$6 -> 3,485 | I8: =DANE!J$6 -> 3,805 | J8: =DANE!K$6 -> 4,130 | K8: =DANE!L$6 -> 4,405 | L8: =DANE!M$6 -> 5,095
B9: =DANE!$N$5 -> LC COVER | C9: =DANE!N$6 -> E0536-0900-6 | D9: =DANE!O$6 -> 0.04 | E9: =DANE!P$6 -> 9 | F9: =DANE!Q$6 -> 13.9 | G9: =DANE!R$6 -> 2,155 | H9: =DANE!S$6 -> 2,085 | I9: =DANE!T$6 -> 2,070 | J9: =DANE!U$6 -> 2,020 | K9: =DANE!V$6 -> 1,915 | L9: =DANE!W$6 -> 2,395
B10: =DANE!$X$5 -> LCV | C10: =DANE!X$6 -> E1536-0900-4S | D10: =DANE!Y$6 -> 1.89 | E10: =DANE!Z$6 -> 108 | F10: =DANE!AA$6 -> 13.9 | G10: =DANE!AB$6 -> 3,400 | H10: =DANE!AC$6 -> 3,590 | I10: =DANE!AD$6 -> 3,920 | J10: =DANE!AE$6 -> 4,255 | K10: =DANE!AF$6 -> 4,540 | L10: =DANE!AG$6 -> 5,250
B11: =DANE!$AH$5 -> LCV COVER | C11: =DANE!AH6 -> E0536-0900-4 | D11: =DANE!AI6 -> 0.04 | E11: =DANE!AJ6 -> 9 | F11: =DANE!AK6 -> 13.9 | G11: =DANE!AL6 -> 2,155 | H11: =DANE!AM6 -> 2,085 | I11: =DANE!AN6 -> 2,070 | J11: =DANE!AO6 -> 2,020 | K11: =DANE!AP6 -> 1,915 | L11: =DANE!AQ6 -> 2,395
A13: =DANE!$C$7 -> 230x107x84/42 | B13: =DANE!$B$7 -> 3 seater /two parts/
B14: =DANE!$D$5 -> LC | C14: =DANE!D$7 -> E1536-0500-6S | D14: =DANE!E$7 -> 1.62 | E14: =DANE!F$7 -> 92 | F14: =DANE!G$7 -> 11.9 | G14: =DANE!H$7 -> 2,860 | H14: =DANE!I$7 -> 3,025 | I14: =DANE!J$7 -> 3,320 | J14: =DANE!K$7 -> 3,610 | K14: =DANE!L$7 -> 3,860 | L14: =DANE!M$7 -> 5,092
B15: =DANE!$N$5 -> LC COVER | C15: =DANE!N$7 -> E0536-0500-6 | D15: =DANE!O$7 -> 0.04 | E15: =DANE!P$7 -> 7 | F15: =DANE!Q$7 -> 11.9 | G15: =DANE!R$7 -> 1,865 | H15: =DANE!S$7 -> 1,810 | I15: =DANE!T$7 -> 1,805 | J15: =DANE!U$7 -> 1,765 | K15: =DANE!V$7 -> 1,680 | L15: =DANE!W$7 -> 2,100
B16: =DANE!$X$5 -> LCV | C16: =DANE!X$7 -> E1536-0500-4S | D16: =DANE!Y$7 -> 1.62 | E16: =DANE!Z$7 -> 92 | F16: =DANE!AA$7 -> 11.9 | G16: =DANE!AB$7 -> 2,950 | H16: =DANE!AC$7 -> 3,120 | I16: =DANE!AD$7 -> 3,420 | J16: =DANE!AE$7 -> 3,720 | K16: =DANE!AF$7 -> 3,980 | L16: =DANE!AG$7 -> 4,615
B17: =DANE!$AH$5 -> LCV COVER | C17: =DANE!AH7 -> E0536-0500-4 | D17: =DANE!AI7 -> 0.04 | E17: =DANE!AJ7 -> 7 | F17: =DANE!AK7 -> 11.9 | G17: =DANE!AL7 -> 1,865 | H17: =DANE!AM7 -> 1,810 | I17: =DANE!AN7 -> 1,805 | J17: =DANE!AO7 -> 1,765 | K17: =DANE!AP7 -> 1,680 | L17: =DANE!AQ7 -> 2,100
A19: =DANE!$C$8 -> 200x107x84/42 | B19: =DANE!$B$8 -> 2 seater
B20: =DANE!$D$5 -> LC | C20: =DANE!D$8 -> E1536-0200-6S | D20: =DANE!E$8 -> 1.40 | E20: =DANE!F$8 -> 66 | F20: =DANE!G$8 -> 10.9 | G20: =DANE!H$8 -> 2,380 | H20: =DANE!I$8 -> 2,505 | I20: =DANE!J$8 -> 2,710 | J20: =DANE!K$8 -> 2,925 | K20: =DANE!L$8 -> 3,135 | L20: =DANE!M$8 -> 4,480
B21: =DANE!$N$5 -> LC COVER | C21: =DANE!N$8 -> E0536-0200-6 | D21: =DANE!O$8 -> 0.03 | E21: =DANE!P$8 -> 7 | F21: =DANE!Q$8 -> 10.9 | G21: =DANE!R$8 -> 1,555 | H21: =DANE!S$8 -> 1,500 | I21: =DANE!T$8 -> 1,475 | J21: =DANE!U$8 -> 1,430 | K21: =DANE!V$8 -> 1,365 | L21: =DANE!W$8 -> 1,705
B22: =DANE!$X$5 -> LCV | C22: =DANE!X$8 -> E1536-0200-4S | D22: =DANE!Y$8 -> 1.40 | E22: =DANE!Z$8 -> 66 | F22: =DANE!AA$8 -> 10.9 | G22: =DANE!AB$8 -> 2,455 | H22: =DANE!AC$8 -> 2,585 | I22: =DANE!AD$8 -> 2,795 | J22: =DANE!AE$8 -> 3,015 | K22: =DANE!AF$8 -> 3,230 | L22: =DANE!AG$8 -> 4,035
B23: =DANE!$AH$5 -> LCV COVER | C23: =DANE!AH8 -> E0536-0200-4 | D23: =DANE!AI8 -> 0.03 | E23: =DANE!AJ8 -> 7 | F23: =DANE!AK8 -> 10.9 | G23: =DANE!AL8 -> 1,555 | H23: =DANE!AM8 -> 1,500 | I23: =DANE!AN8 -> 1,475 | J23: =DANE!AO8 -> 1,430 | K23: =DANE!AP8 -> 1,365 | L23: =DANE!AQ8 -> 1,705
A25: =DANE!$C$9 -> 135x60x42 | B25: =DANE!$B$9 -> footstool 135x60
B26: =DANE!$D$5 -> LC | C26: =DANE!D$9 -> E1536-1070-6S | D26: =DANE!E$9 -> 0.37 | E26: =DANE!F$9 -> 20 | F26: =DANE!G$9 -> 3.0 | G26: =DANE!H$9 -> 1,020 | H26: =DANE!I$9 -> 1,065 | I26: =DANE!J$9 -> 1,150 | J26: =DANE!K$9 -> 1,230 | K26: =DANE!L$9 -> 1,295 | L26: =DANE!M$9 -> 1,620
B27: =DANE!$N$5 -> LC COVER | C27: =DANE!N$9 -> E0536-1070-6 | D27: =DANE!O$9 -> 0.01 | E27: =DANE!P$9 -> 3 | F27: =DANE!Q$9 -> 3.0 | G27: =DANE!R$9 -> 425 | H27: =DANE!S$9 -> 500 | I27: =DANE!T$9 -> 595 | J27: =DANE!U$9 -> 700 | K27: =DANE!V$9 -> 805 | L27: =DANE!W$9 -> 1,005
B28: =DANE!$X$5 -> LCV | C28: =DANE!X$9 -> E1536-1070-4S | D28: =DANE!Y$9 -> 0.37 | E28: =DANE!Z$9 -> 20 | F28: =DANE!AA$9 -> 3.0 | G28: =DANE!AB$9 -> 1,055 | H28: =DANE!AC$9 -> 1,100 | I28: =DANE!AD$9 -> 1,185 | J28: =DANE!AE$9 -> 1,270 | K28: =DANE!AF$9 -> 1,335 | L28: =DANE!AG$9 -> 1,670
B29: =DANE!$AH$5 -> LCV COVER | C29: =DANE!AH9 -> E0536-1070-4 | D29: =DANE!AI9 -> 0.01 | E29: =DANE!AJ9 -> 3 | F29: =DANE!AK9 -> 3.0 | G29: =DANE!AL9 -> 424 | H29: =DANE!AM9 -> 497 | I29: =DANE!AN9 -> 595 | J29: =DANE!AO9 -> 699 | K29: =DANE!AP9 -> 801 | L29: =DANE!AQ9 -> 1,001
A31: =DANE!$C$10 -> 100x50x42 | B31: =DANE!$B$10 -> footstool 100x50
B32: =DANE!$D$5 -> LC | C32: =DANE!D$10 -> E1536-1055-6S | D32: =DANE!E$10 -> 0.22 | E32: =DANE!F$10 -> 15 | F32: =DANE!G$10 -> 2.3 | G32: =DANE!H$10 -> 840 | H32: =DANE!I$10 -> 875 | I32: =DANE!J$10 -> 935 | J32: =DANE!K$10 -> 995 | K32: =DANE!L$10 -> 1,050 | L32: =DANE!M$10 -> 1,310
B33: =DANE!$N$5 -> LC COVER | C33: =DANE!N$10 -> E0536-1055-6 | D33: =DANE!O$10 -> 0.01 | E33: =DANE!P$10 -> 3 | F33: =DANE!Q$10 -> 2.3 | G33: =DANE!R$10 -> 350 | H33: =DANE!S$10 -> 410 | I33: =DANE!T$10 -> 485 | J33: =DANE!U$10 -> 570 | K33: =DANE!V$10 -> 650 | L33: =DANE!W$10 -> 813
B34: =DANE!$X$5 -> LCV | C34: =DANE!X$10 -> E1536-1055-4S | D34: =DANE!Y$10 -> 0.22 | E34: =DANE!Z$10 -> 15 | F34: =DANE!AA$10 -> 2.3 | G34: =DANE!AB$10 -> 870 | H34: =DANE!AC$10 -> 905 | I34: =DANE!AD$10 -> 965 | J34: =DANE!AE$10 -> 1,025 | K34: =DANE!AF$10 -> 1,085 | L34: =DANE!AG$10 -> 1,350
B35: =DANE!$AH$5 -> LCV COVER | C35: =DANE!AH10 -> E0536-1055-4 | D35: =DANE!AI10 -> 0.01 | E35: =DANE!AJ10 -> 3 | F35: =DANE!AK10 -> 2.3 | G35: =DANE!AL10 -> 350 | H35: =DANE!AM10 -> 410 | I35: =DANE!AN10 -> 485 | J35: =DANE!AO10 -> 567 | K35: =DANE!AP10 -> 648 | L35: =DANE!AQ10 -> 810
A37: =DANE!$C$11 -> Ø32 | B37: =DANE!$B$11 -> pillow round
B38: =DANE!$D$5 -> LC | C38: =DANE!D$11 -> E1536-3232-4S | D38: =DANE!E$11 -> 0.03 | E38: =DANE!F$11 -> 2 | F38: =DANE!G$11 -> 0.6 | G38: =DANE!H$11 -> 85 | H38: =DANE!I$11 -> 95 | I38: =DANE!J$11 -> 892 | J38: =DANE!K$11 -> 125 | K38: =DANE!L$11 -> 140 | L38: =DANE!M$11 -> 1,242
B39: =DANE!$N$5 -> LC COVER | C39: =DANE!N$11 -> E0536-3232-4 | D39: =DANE!O$11 -> 0.01 | E39: =DANE!P$11 -> 1 | F39: =DANE!Q$11 -> 0.6 | G39: =DANE!R$11 -> 55 | H39: =DANE!S$11 -> 55 | I39: =DANE!T$11 -> 60 | J39: =DANE!U$11 -> 65 | K39: =DANE!V$11 -> 60 | L39: =DANE!W$11 -> 75
A41: ='DANE Techniczne'!B19 -> *Tolerancja +/- 2 cm dla wszystkich rozmiarów elementów

Sheet Sugerowane ceny sprze brutto
A3: ='DANE Techniczne'!B3 -> Cennik sprzedaży 2020 | M3: factor | N3: 2.276
A4: ='DANE Techniczne'!B4 -> POSZYCIE: tkanina: LC - poszycie luźne lub luźne z rzepem KOMFORT: standard | F4: =DANE!$B$2 -> Currency: | H4: =DANE!$C$2 -> PLN | I4: =DANE!$B$3 -> Valid till: | K4: =DANE!$C$3 -> 31.12.2021 | M4: ='DANE Techniczne'!B20 -> If formulas do not refresh automatically please press F9 and Save
A5: =DANE!$B$5 -> DESCRIPTION ARTICLE No | B5: =DANE!$C$5 -> DIMENSION* | D5: =DANE!$E$5 -> VOL. | E5: =DANE!$F$5 -> WEIGHT | F5: =DANE!$G$5 -> FABRIC USAGE | G5: =DANE!$H$5 -> A | H5: =DANE!$I$5 -> I | I5: =DANE!$J$5 -> II | J5: =DANE!$K$5 -> III | K5: =DANE!$L$5 -> IV | L5: =DANE!$M$5 -> E
A7: =DANE!$C$6 -> 270x107x84/42 | B7: =DANE!$B$6 -> 4 seater /two parts/
B8: =DANE!$D$5 -> LC | C8: =DANE!D$6 -> E1536-0900-6S | D8: =DANE!E$6 -> 1.89 | E8: =DANE!F$6 -> 108 | F8: =DANE!G$6 -> 13.9 | G8: =DANE!H$6*N3 -> 7,511 | H8: =DANE!I$6*N3 -> 7,932 | I8: =DANE!J$6*N3 -> 8,660 | J8: =DANE!K$6*N3 -> 9,400 | K8: =DANE!L$6*N3 -> 10,026 | L8: =DANE!M$6*N3 -> 11,596
B9: =DANE!$N$5 -> LC COVER | C9: =DANE!N$6 -> E0536-0900-6 | D9: =DANE!O$6 -> 0.04 | E9: =DANE!P$6 -> 9 | F9: =DANE!Q$6 -> 13.9 | G9: =DANE!R$6*N3 -> 4,905 | H9: =DANE!S$6*N3 -> 4,745 | I9: =DANE!T$6*N3 -> 4,711 | J9: =DANE!U$6*N3 -> 4,598 | K9: =DANE!V$6*N3 -> 4,359 | L9: =DANE!W$6*N3 -> 5,451
B10: =DANE!$X$5 -> LCV | C10: =DANE!X$6 -> E1536-0900-4S | D10: =DANE!Y$6 -> 1.89 | E10: =DANE!Z$6 -> 108 | F10: =DANE!AA$6 -> 13.9 | G10: =DANE!AB$6*N3 -> 7,738 | H10: =DANE!AC$6*N3 -> 8,171 | I10: =DANE!AD$6*N3 -> 8,922 | J10: =DANE!AE$6*N3 -> 9,684 | K10: =DANE!AF$6*N3 -> 10,333 | L10: =DANE!AG$6*N3 -> 11,949
B11: =DANE!$AH$5 -> LCV COVER | C11: =DANE!AH6 -> E0536-0900-4 | D11: =DANE!AI6 -> 0.04 | E11: =DANE!AJ6 -> 9 | F11: =DANE!AK6 -> 13.9 | G11: =DANE!AL6*N3 -> 4,905 | H11: =DANE!AM6*N3 -> 4,745 | I11: =DANE!AN6*N3 -> 4,711 | J11: =DANE!AO6*N3 -> 4,598 | K11: =DANE!AP6*N3 -> 4,359 | L11: =DANE!AQ6*N3 -> 5,451
A13: =DANE!$C$7 -> 230x107x84/42 | B13: =DANE!$B$7 -> 3 seater /two parts/
B14: =DANE!$D$5 -> LC | C14: =DANE!D$7 -> E1536-0500-6S | D14: =DANE!E$7 -> 1.62 | E14: =DANE!F$7 -> 92 | F14: =DANE!G$7 -> 11.9 | G14: =DANE!H$7*N3 -> 6,509 | H14: =DANE!I$7*N3 -> 6,885 | I14: =DANE!J$7*N3 -> 7,556 | J14: =DANE!K$7*N3 -> 8,216 | K14: =DANE!L$7*N3 -> 8,785 | L14: =DANE!M$7*N3 -> 11,590
B15: =DANE!$N$5 -> LC COVER | C15: =DANE!N$7 -> E0536-0500-6 | D15: =DANE!O$7 -> 0.04 | E15: =DANE!P$7 -> 7 | F15: =DANE!Q$7 -> 11.9 | G15: =DANE!R$7*N3 -> 4,245 | H15: =DANE!S$7*N3 -> 4,120 | I15: =DANE!T$7*N3 -> 4,108 | J15: =DANE!U$7*N3 -> 4,017 | K15: =DANE!V$7*N3 -> 3,824 | L15: =DANE!W$7*N3 -> 4,780
B16: =DANE!$X$5 -> LCV | C16: =DANE!X$7 -> E1536-0500-4S | D16: =DANE!Y$7 -> 1.62 | E16: =DANE!Z$7 -> 92 | F16: =DANE!AA$7 -> 11.9 | G16: =DANE!AB$7*N3 -> 6,714 | H16: =DANE!AC$7*N3 -> 7,101 | I16: =DANE!AD$7*N3 -> 7,784 | J16: =DANE!AE$7*N3 -> 8,467 | K16: =DANE!AF$7*N3 -> 9,058 | L16: =DANE!AG$7*N3 -> 10,504
B17: =DANE!$AH$5 -> LCV COVER | C17: =DANE!AH7 -> E0536-0500-4 | D17: =DANE!AI7 -> 0.04 | E17: =DANE!AJ7 -> 7 | F17: =DANE!AK7 -> 11.9 | G17: =DANE!AL7*N3 -> 4,245 | H17: =DANE!AM7*N3 -> 4,120 | I17: =DANE!AN7*N3 -> 4,108 | J17: =DANE!AO7*N3 -> 4,017 | K17: =DANE!AP7*N3 -> 3,824 | L17: =DANE!AQ7*N3 -> 4,780
A19: =DANE!$C$8 -> 200x107x84/42 | B19: =DANE!$B$8 -> 2 seater
B20: =DANE!$D$5 -> LC | C20: =DANE!D$8 -> E1536-0200-6S | D20: =DANE!E$8 -> 1.40 | E20: =DANE!F$8 -> 66 | F20: =DANE!G$8 -> 10.9 | G20: =DANE!H$8*N3 -> 5,417 | H20: =DANE!I$8*N3 -> 5,701 | I20: =DANE!J$8*N3 -> 6,168 | J20: =DANE!K$8*N3 -> 6,657 | K20: =DANE!L$8*N3 -> 7,135 | L20: =DANE!M$8*N3 -> 10,197
B21: =DANE!$N$5 -> LC COVER | C21: =DANE!N$8 -> E0536-0200-6 | D21: =DANE!O$8 -> 0.03 | E21: =DANE!P$8 -> 7 | F21: =DANE!Q$8 -> 10.9 | G21: =DANE!R$8*N3 -> 3,539 | H21: =DANE!S$8*N3 -> 3,414 | I21: =DANE!T$8*N3 -> 3,357 | J21: =DANE!U$8*N3 -> 3,255 | K21: =DANE!V$8*N3 -> 3,107 | L21: =DANE!W$8*N3 -> 3,881
B22: =DANE!$X$5 -> LCV | C22: =DANE!X$8 -> E1536-0200-4S | D22: =DANE!Y$8 -> 1.40 | E22: =DANE!Z$8 -> 66 | F22: =DANE!AA$8 -> 10.9 | G22: =DANE!AB$8*N3 -> 5,588 | H22: =DANE!AC$8*N3 -> 5,883 | I22: =DANE!AD$8*N3 -> 6,361 | J22: =DANE!AE$8*N3 -> 6,862 | K22: =DANE!AF$8*N3 -> 7,351 | L22: =DANE!AG$8*N3 -> 9,184
B23: =DANE!$AH$5 -> LCV COVER | C23: =DANE!AH8 -> E0536-0200-4 | D23: =DANE!AI8 -> 0.03 | E23: =DANE!AJ8 -> 7 | F23: =DANE!AK8 -> 10.9 | G23: =DANE!AL8*N3 -> 3,539 | H23: =DANE!AM8*N3 -> 3,414 | I23: =DANE!AN8*N3 -> 3,357 | J23: =DANE!AO8*N3 -> 3,255 | K23: =DANE!AP8*N3 -> 3,107 | L23: =DANE!AQ8*N3 -> 3,881
A25: =DANE!$C$9 -> 135x60x42 | B25: =DANE!$B$9 -> footstool 135x60
B26: =DANE!$D$5 -> LC | C26: =DANE!D$9 -> E1536-1070-6S | D26: =DANE!E$9 -> 0.37 | E26: =DANE!F$9 -> 20 | F26: =DANE!G$9 -> 3.0 | G26: =DANE!H$9*N3 -> 2,322 | H26: =DANE!I$9*N3*N3 -> 5,517 | I26: =DANE!J$9*N3*N3 -> 5,957 | J26: =DANE!K$9*N3*N3 -> 6,372 | K26: =DANE!L$9*N3*N3 -> 6,708 | L26: =DANE!M$9*N3 -> 3,687
B27: =DANE!$N$5 -> LC COVER | C27: =DANE!N$9 -> E0536-1070-6 | D27: =DANE!O$9 -> 0.01 | E27: =DANE!P$9 -> 3 | F27: =DANE!Q$9 -> 3.0 | G27: =DANE!R$9*N3 -> 967 | H27: =DANE!S$9*N3*N3 -> 2,590 | I27: =DANE!T$9*N3*N3 -> 3,082 | J27: =DANE!U$9*N3*N3 -> 3,626 | K27: =DANE!V$9*N3*N3 -> 4,170 | L27: =DANE!W$9*N3 -> 2,287
B28: =DANE!$X$5 -> LCV | C28: =DANE!X$9 -> E1536-1070-4S | D28: =DANE!Y$9 -> 0.37 | E28: =DANE!Z$9 -> 20 | F28: =DANE!AA$9 -> 3.0 | G28: =DANE!AB$9*N3 -> 2,401 | H28: =DANE!AC$9*N3*N3 -> 5,698 | I28: =DANE!AD$9*N3*N3 -> 6,139 | J28: =DANE!AE$9*N3*N3 -> 6,579 | K28: =DANE!AF$9*N3*N3 -> 6,916 | L28: =DANE!AG$9*N3 -> 3,801
B29: =DANE!$AH$5 -> LCV COVER | C29: =DANE!AH9 -> E0536-1070-4 | D29: =DANE!AI9 -> 0.01 | E29: =DANE!AJ9 -> 3 | F29: =DANE!AK9 -> 3.0 | G29: =DANE!AL9*N3 -> 965 | H29: =DANE!AM9*N3*N3 -> 2,576 | I29: =DANE!AN9*N3*N3 -> 3,082 | J29: =DANE!AO9*N3*N3 -> 3,618 | K29: =DANE!AP9*N3*N3 -> 4,149 | L29: =DANE!AQ9*N3 -> 2,279
A31: =DANE!$C$10 -> 100x50x42 | B31: =DANE!$B$10 -> footstool 100x50
B32: =DANE!$D$5 -> LC | C32: =DANE!D$10 -> E1536-1055-6S | D32: =DANE!E$10 -> 0.22 | E32: =DANE!F$10 -> 15 | F32: =DANE!G$10 -> 2.3 | G32: =DANE!H$10*N3 -> 1,912 | H32: =DANE!I$10*N3 -> 1,992 | I32: =DANE!J$10*N3 -> 2,128 | J32: =DANE!K$10*N3 -> 2,265 | K32: =DANE!L$10*N3 -> 2,390 | L32: =DANE!M$10*N3 -> 2,982
B33: =DANE!$N$5 -> LC COVER | C33: =DANE!N$10 -> E0536-1055-6 | D33: =DANE!O$10 -> 0.01 | E33: =DANE!P$10 -> 3 | F33: =DANE!Q$10 -> 2.3 | G33: =DANE!R$10*N3 -> 797 | H33: =DANE!S$10*N3 -> 932 | I33: =DANE!T$10*N3 -> 1,104 | J33: =DANE!U$10*N3 -> 1,297 | K33: =DANE!V$10*N3 -> 1,479 | L33: =DANE!W$10*N3 -> 1,849
B34: =DANE!$X$5 -> LCV | C34: =DANE!X$10 -> E1536-1055-4S | D34: =DANE!Y$10 -> 0.22 | E34: =DANE!Z$10 -> 15 | F34: =DANE!AA$10 -> 2.3 | G34: =DANE!AB$10*N3 -> 1,980 | H34: =DANE!AC$10*N3 -> 2,060 | I34: =DANE!AD$10*N3 -> 2,196 | J34: =DANE!AE$10*N3 -> 2,333 | K34: =DANE!AF$10*N3 -> 2,469 | L34: =DANE!AG$10*N3 -> 3,073
B35: =DANE!$AH$5 -> LCV COVER | C35: =DANE!AH10 -> E0536-1055-4 | D35: =DANE!AI10 -> 0.01 | E35: =DANE!AJ10 -> 3 | F35: =DANE!AK10 -> 2.3 | G35: =DANE!AL10*N3 -> 797 | H35: =DANE!AM10*N3 -> 932 | I35: =DANE!AN10*N3 -> 1,104 | J35: =DANE!AO10*N3 -> 1,289 | K35: =DANE!AP10*N3 -> 1,475 | L35: =DANE!AQ10*N3 -> 1,844
A37: =DANE!$C$11 -> Ø32 | B37: =DANE!$B$11 -> pillow round
B38: =DANE!$D$5 -> LC | C38: =DANE!D$11 -> E1536-3232-4S | D38: =DANE!E$11 -> 0.03 | E38: =DANE!F$11 -> 2 | F38: =DANE!G$11 -> 0.6 | G38: =DANE!H$11*N3 -> 193 | H38: =DANE!I$11*N3 -> 216 | I38: =DANE!J$11*N3 -> 2,031 | J38: =DANE!K$11*N3 -> 285 | K38: =DANE!L$11*N3 -> 319 | L38: =DANE!M$11*N3 -> 2,827
B39: =DANE!$N$5 -> LC COVER | C39: =DANE!N$11 -> E0536-3232-4 | D39: =DANE!O$11 -> 0.01 | E39: =DANE!P$11 -> 1 | F39: =DANE!Q$11 -> 0.6 | G39: =DANE!R$11*N3 -> 125 | H39: =DANE!S$11*N3 -> 125 | I39: =DANE!T$11*N3 -> 137 | J39: =DANE!U$11*N3 -> 148 | K39: =DANE!V$11*N3 -> 137 | L39: =DANE!W$11*N3 -> 171
A41: ='DANE Techniczne'!B19 -> *Tolerancja +/- 2 cm dla wszystkich rozmiarów elementów
A42: =DANE!$C$12 -> Załączone ceny rekomendowane mają charakter sugerowanych cen sprzedaży. Kupujący nie jest związany cenami rekomendowanymi.
